bitfinex/quotes_ETHUSD_20250411
["timestamp","ask_amount","ask_price","bid_price","bid_amount"]
[1744349601345,12.62419,1547.0,1546.7,7.41154446]
[1744349601546,6.16,1547.0,1546.7,7.41154446]
[1744349602047,13.92445,1547.2,1546.8,6.46494]
[1744349602382,13.92445,1547.2,1546.9,0.18549537]
[1744349602582,6.46375,1547.1,1546.9,0.18549537]
[1744349602952,6.46412,1547.0,1546.9,0.18549537]
[1744349603168,6.46412,1547.0,1546.7,0.7604]
[1744349603483,6.46412,1547.0,1546.8,0.18561326]
[1744349604841,6.46375,1547.1,1546.8,0.18561326]
[1744349605477,13.92445,1547.2,1546.8,7.39154359]
[1744349605678,13.09835,1547.2,1546.9,7.2241]
[1744349605985,13.09835,1547.2,1547.0,0.18527119]
[1744349606367,6.635,1547.2,1546.9,13.68844]
[1744349606682,6.46251,1547.4,1547.2,0.7999]
[1744349606986,9.46251,1547.4,1547.3,0.18377552]
[1744349607286,12.018365,1547.4,1547.3,0.18377552]
[1744349607459,12.018365,1547.4,1547.2,0.7999]
[1744349607642,12.018365,1547.4,1547.3,0.18398782]
[1744349607847,12.018365,1547.4,1547.2,0.7999]
[1744349608049,12.018365,1547.4,1547.3,0.18404094]
[1744349608244,12.018365,1547.4,1547.2,0.7999]
[1744349608468,6.634,1547.5,1547.2,7.26295]
[1744349608784,62.24188055,1547.9,1547.4,7.26212]
[1744349608785,13.09379,1547.8,1547.4,7.26212]
[1744349608991,6.633,1547.8,1547.5,6.4618]
[1744349609195,13.09258,1548.1,1547.7,7.26084]
[1744349609490,13.09258,1548.1,1547.8,6.6428718]
[1744349609788,6.46036,1547.9,1547.8,0.1821518]
[1744349610093,13.567056,1547.9,1547.5,7.26193]
[1744349610389,13.567056,1547.9,1547.6,0.18328983]
[1744349610584,12.92195,1547.8,1547.6,0.18328983]
[1744349610886,6.46091,1547.8,1547.6,0.18328983]
[1744349611689,13.0932,1547.7,1547.6,0.18328983]
[1744349611993,6.46201,1547.6,1547.3,0.7999]
[1744349612179,6.46287,1547.3,1547.2,6.21785235]
[1744349613069,6.46263,1547.4,1547.2,6.21785235]
[1744349613270,6.46263,1547.4,1547.1,6.4637]
[1744349613594,12.92535,1547.4,1547.0,7.26373]
[1744349613760,12.92603,1547.3,1547.0,0.7999]
[1744349614782,6.46257,1547.4,1547.0,7.26384]
[1744349614982,6.46257,1547.4,1547.0,8.68590198]
[1744349616092,6.46257,1547.4,1547.1,0.17877575]
[1744349617400,7.25456,1547.5,1547.1,6.64228575]
[1744349617560,6.16,1547.7,1547.5,0.7999]
[1744349617766,6.46183,1547.6,1547.3,0.7999]
[1744349618902,6.46079,1547.8,1547.3,0.7999]
[1744349619061,12.92189,1547.8,1547.3,7.73961569]
[1744349619261,12.92189,1547.8,1547.4,6.46241]
[1744349619585,4.438336,1547.9,1547.3,7.73961569]
[1744349619586,12.92282,1547.7,1547.3,7.26272]
[1744349619761,14.215102,1547.7,1547.3,7.26272]
[1744349619961,4.438336,1547.9,1547.4,6.46215]
[1744349619962,6.46079,1547.8,1547.4,6.46215]
[1744349620674,6.46079,1547.8,1547.4,12.92441]
[1744349621193,6.46136,1547.7,1547.3,7.26269]
[1744349621402,12.92288,1547.7,1547.3,7.26269]
[1744349621966,6.46136,1547.7,1547.4,6.46231]
[1744349622166,6.46136,1547.7,1547.4,7.834801]
[1744349624319,6.46136,1547.7,1547.4,6.46231]
[1744349625019,6.46086,1547.8,1547.4,6.46226]
[1744349625219,10.106476,1547.9,1547.6,0.7607]
[1744349625587,10.106476,1547.9,1547.6,7.22229]
[1744349625919,6.46002,1548.0,1547.7,6.46115]
[1744349626115,3.0,1548.0,1547.5,0.7607]
[1744349626325,16.90936,1548.1,1547.5,0.7607]
[1744349626326,6.46117,1547.8,1547.5,0.7607]
[1744349626893,12.92216,1547.8,1547.5,0.7607]
[1744349629527,6.46099,1547.8,1547.5,0.7607]
[1744349629725,7.24935,1548.1,1547.7,6.46094]
[1744349629924,0.7898,1548.1,1547.7,0.7607]
[1744349630128,12.92048,1548.0,1547.7,0.7607]
[1744349630299,6.46049,1547.9,1547.7,0.7607]
[1744349630622,6.46049,1547.9,1547.6,0.7607]
[1744349630790,6.46081,1547.8,1547.6,0.7607]
[1744349630992,6.46049,1547.9,1547.6,0.7607]
[1744349631226,6.46049,1547.9,1547.7,0.17717604]
[1744349631725,6.46049,1547.9,1547.8,0.17727072]
[1744349631929,6.46049,1547.9,1547.6,0.7607]
[1744349632126,6.46049,1547.9,1547.7,0.17786644]
[1744349632331,6.46049,1547.9,1547.6,0.7607]
[1744349632504,6.46049,1547.9,1547.7,0.17797267]
[1744349632707,9.20824,1547.9,1547.5,6.46184]
[1744349633028,9.20824,1547.9,1547.6,0.17824976]
[1744349633630,6.46078,1547.8,1547.6,0.17824976]
[1744349633801,6.4612,1547.7,1547.6,0.17824976]
[1744349634009,7.251,1547.7,1547.6,0.17824976]
[1744349634190,3.0,1547.6,1547.2,0.7607]
[1744349634399,0.7898,1547.4,1547.1,0.7607]
[1744349634611,0.7898,1547.4,1546.9,0.7607]
[1744349634932,0.7898,1547.4,1546.9,7.2252]
[1744349635132,13.91029,1547.4,1547.0,0.72252]
[1744349635837,7.4478,1547.4,1547.0,7.18657]
[1744349635999,6.658,1547.4,1547.2,0.7607]
[1744349636201,6.658,1547.4,1547.2,7.22375]
[1744349638227,6.658,1547.4,1547.2,7.946125]
[1744349638524,6.658,1547.4,1547.2,10.10406988]
[1744349641035,6.658,1547.4,1547.0,3.67731988]
[1744349641239,6.658,1547.4,1547.1,0.60137581]
[1744349641240,13.12085,1547.4,1547.1,0.60137581]
[1744349641913,6.658,1547.4,1547.1,0.60137581]
[1744349643108,13.1206,1547.4,1547.1,0.60137581]
[1744349643339,1.31206,1547.3,1547.1,0.60137581]
[1744349643562,6.658,1547.4,1547.1,7.06467581]
[1744349643838,6.658,1547.4,1547.2,6.46311]
[1744349644040,6.658,1547.4,1547.2,7.06448581]
[1744349644397,6.658,1547.4,1547.2,0.60137581]
[1744349644597,6.658,1547.4,1547.1,6.4633]
[1744349644837,6.658,1547.4,1547.1,8.12377199]
[1744349645309,6.658,1547.4,1547.2,0.60145732]
[1744349646340,6.658,1547.4,1547.3,0.17973673]
[1744349646743,6.658,1547.4,1547.1,12.92678]
[1744349647044,6.658,1547.4,1547.2,0.17980138]
[1744349647419,6.658,1547.4,1547.1,12.92678]
[1744349647619,6.658,1547.4,1547.3,0.17963043]
[1744349647830,6.658,1547.4,1547.2,0.17990761]
[1744349648140,6.658,1547.4,1547.3,0.17973669]
[1744349648342,6.658,1547.4,1547.1,14.58718999]
[1744349648639,6.658,1547.4,1547.2,0.78185734]
[1744349649244,6.658,1547.4,1547.2,0.18001388]
[1744349649546,6.658,1547.4,1547.2,10.82024027]
[1744349649852,7.4087,1547.8,1547.5,6.46199]
[1744349650346,7.4087,1547.8,1547.6,0.17869373]
[1744349650945,7.4087,1547.8,1547.4,9.34261988]
[1744349651153,13.86969,1547.8,1547.5,0.17923608]
[1744349651453,7.23831,1547.6,1547.5,0.17923608]
[1744349651748,7.23831,1547.6,1547.2,2.88031988]
[1744349651945,13.70016,1547.6,1547.3,0.17835664]
[1744349652242,12.92432,1547.5,1547.3,0.17835664]
[1744349652448,13.90045,1547.4,1547.3,0.17835664]
[1744349652648,13.90045,1547.4,1547.1,6.21785235]
[1744349652649,15.936698,1547.4,1547.1,6.21785235]
[1744349652952,6.46287,1547.3,1547.2,0.17884621]
[1744349653248,13.73206,1547.3,1547.1,6.21785235]
[1744349653447,7.26887,1547.3,1547.2,0.1638347]
[1744349653846,7.26887,1547.3,1546.9,7.72230828]
[1744349653847,13.73206,1547.3,1546.8,22.82377223]
[1744349654049,1.373206,1547.2,1546.9,6.46448]
[1744349654355,0.806,1547.3,1547.0,6.46409]
[1744349655547,0.806,1547.3,1546.9,6.46432]
[1744349656047,0.806,1547.3,1546.9,12.92867]
[1744349656658,0.806,1547.3,1546.9,6.46432]
[1744349658435,7.26908,1547.3,1546.9,6.46432]
[1744349658636,15.9721728,1547.3,1546.8,10.14132988]
[1744349659013,0.806,1547.1,1546.6,23.65770304]
[1744349659214,6.46415,1547.0,1546.6,16.8552198]
[1744349659445,6.46415,1547.0,1546.7,0.60148633]
[1744349659838,7.26987,1547.1,1546.7,0.60148633]
[1744349660051,8.643193,1547.1,1546.7,7.06682633]
[1744349660251,0.806,1547.2,1546.9,6.46453]
[1744349660771,0.806,1547.2,1546.8,12.9296]
[1744349661134,0.806,1547.2,1546.9,0.16378907]
[1744349661875,0.806,1547.2,1547.0,6.4641]
[1744349662236,0.806,1547.2,1547.1,0.16554937]
[1744349662436,3.0,1547.3,1547.1,0.16554937]
[1744349662831,4.690047,1547.3,1547.1,0.16554937]
[1744349666175,7.438,1547.4,1547.1,6.62895937]
[1744349667572,13.90058,1547.4,1547.1,0.16554937]
[1744349667778,20.36343,1547.4,1547.1,0.16554937]
[1744349668658,13.90058,1547.4,1547.1,0.16554937]
[1744349671888,20.36324,1547.4,1547.1,0.16554937]
[1744349672047,22.699564,1547.4,1547.1,0.16554937]
[1744349672371,16.236904,1547.4,1547.1,0.16554937]
[1744349672569,6.632,1547.4,1547.1,6.62916937]
[1744349672774,6.16,1547.6,1547.3,6.46271]
[1744349672775,12.62163,1547.6,1547.3,6.46271]
[1744349672982,6.46163,1547.6,1547.4,0.16620556]
[1744349673184,6.46163,1547.6,1547.3,6.46271]
[1744349673362,6.46163,1547.6,1547.4,0.16625869]
[1744349673557,6.46284,1547.4,1547.0,7.21795]
[1744349673763,6.4631,1547.3,1547.1,0.16671835]
[1744349673986,6.46253,1547.4,1547.1,0.60211591]
[1744349674198,6.46253,1547.4,1547.2,0.16537847]
[1744349674509,6.46329,1547.2,1547.0,0.754]
[1744349674809,6.46329,1547.2,1546.8,6.46482]
[1744349674810,7.109619,1547.2,1547.1,0.16443367]
[1744349675161,7.109619,1547.2,1546.9,6.97185235]
[1744349675404,6.46329,1547.2,1547.0,0.16566678]
[1744349677112,6.4637,1547.1,1547.0,0.16566678]
[1744349677321,7.2928,1547.1,1547.0,0.16566678]
[1744349677489,6.46579,1546.6,1546.5,6.30192664]
[1744349678018,7.29465,1546.7,1546.5,6.46921183]
[1744349678223,6.46579,1546.6,1546.5,6.46921183]
[1744349678423,7.29465,1546.7,1546.5,6.46921183]
[1744349678919,21.673168,1546.7,1546.5,0.25135948]
[1744349679082,6.46579,1546.6,1546.5,0.25135948]
[1744349683536,13.83165,1546.7,1546.5,0.25135948]
[1744349683700,20.29727,1546.7,1546.5,0.25135948]
[1744349684231,6.46579,1546.6,1546.5,0.25135948]
[1744349688598,6.46579,1546.6,1546.5,0.08407429]
[1744349689638,6.46622,1546.5,1546.2,4.03008728]
[1744349689835,6.46579,1546.6,1546.2,12.25254101]
[1744349690044,13.00246,1546.7,1546.4,6.46661]
[1744349690555,13.00246,1546.7,1546.5,0.17134558]
[1744349691099,19.46805,1546.7,1546.5,0.17134558]
[1744349691301,6.46579,1546.6,1546.5,0.17134558]
[1744349691502,6.46579,1546.6,1546.3,13.75103]
[1744349691702,6.46579,1546.6,1546.5,0.17134558]
[1744349691930,6.46579,1546.6,1546.4,0.17162314]
[1744349692144,6.46579,1546.6,1546.5,0.17134558]
[1744349692500,6.46579,1546.6,1546.3,9.1622871]
[1744349692701,6.46579,1546.6,1546.5,0.17118604]
[1744349692939,6.46579,1546.6,1546.4,0.17146359]
[1744349693147,6.46579,1546.6,1546.5,0.17118604]
[1744349696048,6.46579,1546.6,1546.3,9.1622871]
[1744349696254,6.46579,1546.6,1546.5,0.17118604]
[1744349696567,6.46621,1546.5,1546.4,0.17146359]
[1744349696774,7.29895,1546.3,1546.2,0.3957674]
[1744349699158,13.83895,1546.3,1546.2,0.3957674]
[1744349699331,17.38895,1546.3,1546.2,0.3957674]
[1744349699535,17.38895,1546.3,1546.1,7.4e-06]
[1744349699725,17.00936,1546.2,1546.1,7.4e-06]
[1744349699920,20.29903299,1546.2,1546.1,7.4e-06]
[1744349700956,6.47039,1545.5,1545.4,6.21785235]
[1744349701140,13.01139,1545.5,1545.4,6.21785235]
[1744349701349,16.01139,1545.5,1545.4,6.21785235]
[1744349702023,13.01139,1545.5,1545.4,6.21785235]
[1744349702222,6.541,1545.5,1545.4,7.64343759]
[1744349702544,6.46962,1545.7,1545.4,7.64343759]
[1744349703051,13.01018,1545.8,1545.4,14.45142215]
[1744349703250,6.46956,1545.7,1545.5,0.17395825]
[1744349704359,13.01018,1545.8,1545.5,0.17395825]
[1744349704556,14.688048,1545.8,1545.5,0.17395825]
[1744349705157,10.23728,1545.9,1545.5,6.64431825]
[1744349705354,16.77928,1545.9,1545.5,6.64431825]
[1744349705546,23.24828,1545.9,1545.5,6.64431825]
[1744349705748,6.46917,1545.8,1545.5,6.64431825]
[1744349706540,16.77928,1545.9,1545.5,6.64431825]
[1744349706745,19.721045,1545.9,1545.5,6.64431825]
[1744349706950,26.190035,1545.9,1545.5,6.64431825]
[1744349707266,12.93862,1545.8,1545.5,0.17395825]
[1744349707659,6.46916,1545.8,1545.5,0.17395825]
[1744349710436,6.46916,1545.8,1545.5,6.64429825]
[1744349710763,26.190175,1545.9,1545.5,6.64418825]
[1744349711067,6.46918,1545.8,1545.5,6.64418825]
[1744349714646,12.93853,1545.8,1545.5,0.17395825]
[1744349714833,15.5576095,1545.8,1545.5,0.17395825]
[1744349715334,9.0882595,1545.8,1545.5,0.17395825]
[1744349716244,6.543,1545.9,1545.6,6.4698]
[1744349716438,6.543,1545.9,1545.7,7.42651503]
[1744349716641,6.543,1545.9,1545.7,0.17662503]
[1744349716642,13.83631,1545.9,1545.7,0.17662503]
[1744349716854,6.46914,1545.8,1545.7,0.17662503]
[1744349717060,12.93869,1545.8,1545.4,7.58833456]
[1744349717258,2.030599,1545.8,1545.5,6.47025]
[1744349717588,2.030599,1545.8,1545.6,0.17722228]
[1744349718509,0.8243,1546.1,1545.7,0.7805]
[1744349718659,19.26117299,1546.2,1545.9,6.46867]
[1744349718860,19.26132299,1546.2,1546.0,0.17464784]
[1744349719069,19.26132299,1546.2,1545.7,0.7805]
[1744349719070,8.3941923,1546.1,1545.7,13.71932]
[1744349719262,8.3941923,1546.1,1545.8,6.64422681]
[1744349719455,6.46806,1546.1,1545.8,6.64422681]
[1744349720093,6.46856,1546.0,1545.8,0.17509681]
[1744349720302,9.79367299,1546.2,1545.8,0.17509681]
[1744349720616,22.72907299,1546.2,1545.8,12.93794]
[1744349720803,22.72907299,1546.2,1545.9,0.17503191]
[1744349720959,8.7408073,1546.1,1545.9,0.17503191]
[1744349721159,6.46907,1545.9,1545.7,0.7805]
[1744349721484,6.46907,1545.9,1545.5,6.47008]
[1744349721485,6.46897,1545.9,1545.6,0.8158]
[1744349721683,9.5028173,1546.1,1545.8,6.46899]
[1744349721903,9.5028173,1546.1,1545.9,0.8158]
[1744349721904,2.2729073,1546.1,1545.9,0.8158]
[1744349723080,9.79367299,1546.2,1545.9,7.28442]
[1744349723522,6.504,1546.2,1546.0,6.46822]
[1744349723826,6.504,1546.2,1545.9,7.28433]
[1744349723985,6.504,1546.2,1545.9,13.75285]
[1744349725588,6.504,1546.2,1545.9,7.28432]
[1744349726308,6.46829,1546.1,1545.7,6.46947]
[1744349726516,13.58692,1546.1,1545.8,0.8287]
[1744349726716,7.11863,1546.1,1545.8,0.8287]
[1744349727734,7.11863,1546.1,1545.8,7.29783]
[1744349728336,13.58686,1546.1,1545.8,7.29783]
[1744349728500,7.11863,1546.1,1545.8,7.29783]
[1744349728829,13.5868,1546.1,1545.8,0.8287]
[1744349729129,13.58665,1546.1,1545.8,0.8287]
[1744349729497,6.46876,1545.9,1545.7,0.8287]
[1744349730405,6.46876,1545.9,1545.6,6.80690651]
[1744349730621,6.46956,1545.7,1545.3,0.8287]
[1744349730806,6.4703,1545.6,1545.3,0.8287]
[1744349731135,6.47059,1545.5,1545.2,6.55481582]
[1744349731313,12.94124,1545.5,1545.3,0.60435469]
[1744349731515,6.47081,1545.4,1545.3,0.60435469]
[1744349731949,6.47123,1545.3,1545.2,0.60435469]
[1744349732255,7.844474,1545.3,1545.2,0.60435469]
[1744349732414,6.47165,1545.2,1545.1,6.21785235]
[1744349732843,7.26205,1545.2,1545.1,6.80552326]
[1744349733821,7.26205,1545.2,1545.1,0.58767091]
[1744349734053,9.3887024,1545.2,1545.1,0.58767091]
[1744349734254,6.47305,1544.9,1544.7,1.65720775]
[1744349734424,6.504,1544.9,1544.7,1.65720775]
[1744349734955,6.504,1544.9,1544.8,0.8287]
[1744349735142,6.504,1544.9,1544.8,7.30202]
[1744349735309,6.504,1545.3,1545.0,6.47233]
[1744349736213,7.26125,1545.4,1545.1,7.06084589]
[1744349736748,6.504,1545.5,1545.1,7.88947589]
[1744349736952,6.504,1545.5,1545.3,6.47112]
[1744349737154,6.504,1545.5,1545.4,6.47081]
[1744349737314,6.504,1545.5,1545.3,6.47112]
[1744349738027,6.504,1545.5,1545.4,7.29951]
[1744349738226,6.504,1545.5,1545.4,7.88749231]
[1744349738424,12.62831,1546.0,1545.4,7.88749231]
[1744349738425,6.506,1546.2,1545.5,0.8287]
[1744349738640,6.46828,1546.1,1545.6,6.46971]
[1744349738838,6.46828,1546.1,1545.6,7.05708346]
[1744349739037,12.93658,1546.1,1545.6,13.52680346]
[1744349739363,1.293658,1546.0,1545.6,13.52680346]
[1744349739854,7.762048,1546.0,1545.6,7.05708346]
[1744349740060,12.93806,1545.9,1545.6,0.58737346]
[1744349740426,8.552418,1546.0,1545.6,0.58737346]
[1744349740642,8.552418,1546.0,1545.6,13.52668346]
[1744349741059,8.552418,1546.0,1545.7,6.46956]
[1744349741561,0.8552418,1545.9,1545.8,0.58676476]
[1744349741966,0.8552418,1545.9,1545.6,6.46958]
[1744349742269,0.8552418,1545.9,1545.8,0.58326657]
[1744349742571,0.8552418,1545.9,1545.8,0.58332486]
[1744349742774,8.552418,1546.0,1545.6,6.46958]
[1744349743061,12.97383,1546.2,1545.8,7.05242486]
[1744349743062,6.46794,1546.1,1545.8,7.05242486]
[1744349743264,13.80703,1546.2,1545.8,6.4691]
[1744349743426,20.2748,1546.2,1545.9,0.58238167]
[1744349743629,6.46807,1546.1,1545.9,0.58238167]
[1744349743845,25.59869,1546.4,1546.0,7.27366]
[1744349744024,2.559869,1546.3,1546.0,7.27366]
[1744349744223,9.026949,1546.3,1546.1,0.58183193]
[1744349747131,19.13173,1546.4,1546.1,7.04969193]
[1744349748269,6.505,1546.4,1546.1,7.04969193]
[1744349748953,6.505,1546.4,1546.1,13.51738193]
[1744349749265,16.45902,1546.6,1546.3,7.27254]
[1744349749266,6.46582,1546.6,1546.3,7.27254]
[1744349749467,6.46542,1546.7,1546.3,13.73942]
[1744349749668,6.46542,1546.7,1546.4,0.58150291]
[1744349749843,8.492185,1546.7,1546.4,7.04809291]
[1744349750044,8.492185,1546.7,1546.4,6.46659]
[1744349750273,8.492185,1546.7,1546.5,0.58119903]
[1744349750274,2.026765,1546.7,1546.5,0.58119903]
[1744349750837,2.026765,1546.7,1546.4,6.46659]
[1744349751037,2.026765,1546.7,1546.6,0.58083693]
[1744349751341,2.026765,1546.7,1546.6,0.5808952]
[1744349751555,2.026765,1546.7,1546.4,6.46644]
[1744349751755,6.504,1546.8,1546.6,0.58095346]
[1744349752066,6.504,1546.8,1546.5,7.0474473]
[1744349752239,9.504,1546.8,1546.7,0.58064966]
[1744349752444,9.504,1546.8,1546.6,0.58101173]
[1744349752647,12.96895,1546.8,1546.7,0.58070793]
[1744349752830,14.99562,1546.8,1546.7,0.58070793]
[1744349753031,21.46084,1546.8,1546.4,6.46644]
[1744349753470,21.46084,1546.8,1546.5,0.58143212]
[1744349753671,6.4654,1546.7,1546.5,0.58143212]
[1744349755487,6.46579,1546.6,1546.5,0.58143212]
[1744349755693,6.46579,1546.6,1546.3,7.27251]
[1744349755889,6.46579,1546.6,1546.4,0.58150291]
[1744349756190,6.46579,1546.6,1546.3,7.27251]
[1744349756391,6.46579,1546.6,1546.5,0.58119903]
[1744349756556,6.46621,1546.5,1546.4,0.58150291]
[1744349756757,6.46621,1546.5,1546.3,0.8055]
[1744349756956,7.25209,1546.6,1546.3,0.8055]
[1744349757492,13.71816,1546.6,1546.3,0.8055]
[1744349758901,15.089976,1546.6,1546.3,0.8055]
[1744349759259,8.623906,1546.6,1546.3,0.8055]
[1744349760001,7.25209,1546.6,1546.3,0.8055]
[1744349760402,13.75533,1546.8,1546.3,0.8055]
[1744349760726,0.7863,1547.0,1546.5,0.8105]
[1744349760863,12.96575,1547.1,1546.7,6.46498]
[1744349761065,12.96575,1547.1,1546.8,7.27534]
[1744349761598,6.4642,1547.0,1546.7,6.46498]
[1744349761992,6.4642,1547.0,1546.6,13.74194]
[1744349764414,6.4642,1547.0,1546.7,6.46534]
[1744349764762,6.502,1547.1,1546.6,0.8105]
[1744349765013,6.502,1547.1,1546.9,13.73911]
[1744349765183,6.502,1547.1,1546.9,7.27471]
[1744349765380,6.502,1547.1,1546.9,1.37396]
[1744349765600,62.71619,1547.3,1546.7,3.69081988]
[1744349765801,69.17931,1547.3,1546.9,6.46427]
[1744349765975,6.46399,1547.1,1546.7,7.27582]
[1744349766176,6.46399,1547.1,1547.0,0.57598923]
[1744349766369,6.46399,1547.1,1546.7,7.27573]
[1744349766574,6.46399,1547.1,1547.0,0.57593102]
[1744349767183,6.46399,1547.1,1546.7,8.003303]
[1744349767386,6.46399,1547.1,1547.0,0.57593102]
[1744349767615,6.46399,1547.1,1546.8,6.46489]
[1744349767907,6.46399,1547.1,1546.9,0.57623461]
[1744349768914,7.756735,1547.1,1546.9,0.57623461]
[1744349771729,6.46412,1547.0,1546.9,0.57623461]
[1744349771872,6.46557,1546.7,1546.3,7.70115611]
[1744349772223,6.46586,1546.6,1546.4,0.52961711]
[1744349772428,6.46621,1546.5,1546.4,0.52961711]
[1744349772724,6.46621,1546.5,1546.4,0.53046149]
[1744349773015,7.29726,1546.6,1546.4,0.53046149]
[1744349773180,7.29726,1546.6,1546.2,12.93457]
[1744349773407,7.29726,1546.6,1546.5,0.52942615]
[1744349773611,7.29726,1546.6,1546.3,6.46698]
[1744349773845,12.93095,1546.7,1546.5,0.52942615]
[1744349774048,7.29638,1546.8,1546.4,7.75250999]
[1744349774347,13.76085,1546.9,1546.6,0.52912234]
[1744349774532,21.638935,1546.9,1546.5,6.99533615]
[1744349774729,6.465,1546.8,1546.5,0.52942615]
[1744349775045,7.29719,1546.6,1546.5,0.52942615]
[1744349775948,7.29719,1546.6,1546.3,6.46697]
[1744349776120,7.29719,1546.6,1546.5,0.52942615]
[1744349776318,7.29719,1546.6,1546.3,6.46697]
[1744349776641,7.29719,1546.6,1546.4,0.52972999]
[1744349776943,7.29719,1546.6,1546.3,6.46697]
[1744349777108,7.29719,1546.6,1546.5,0.52942615]
[1744349777438,7.29719,1546.6,1546.2,0.7563]
[1744349777439,6.46687,1546.4,1546.2,0.7563]
[1744349777610,2.207687,1546.6,1546.2,7.22373]
[1744349777611,6.4663,1546.5,1546.2,7.22373]
[1744349777811,6.46699,1546.4,1546.3,0.60249676]
[1744349778237,12.96839,1546.5,1546.1,0.60249676]
[1744349778546,6.502,1546.5,1546.4,6.46663]
[1744349779728,13.79859,1546.8,1546.4,12.93311]
[1744349779912,16.2625165,1546.8,1546.4,12.93311]
[1744349780115,22.7277165,1546.8,1546.4,6.46648]
[1744349781247,22.7277165,1546.8,1546.5,0.52951289]
[1744349785840,16.2625165,1546.8,1546.5,0.52951289]
[1744349786251,0.8314,1547.1,1546.7,6.46537]
[1744349786548,0.8314,1547.1,1546.6,3.63661988]
[1744349786549,6.46477,1546.9,1546.8,0.52819377]
[1744349786852,12.92845,1547.0,1546.8,0.52819377]
[1744349787006,7.29514,1547.1,1546.8,0.52819377]
[1744349787211,0.8314,1547.1,1546.8,6.46476]
[1744349787455,0.8314,1547.1,1546.9,0.52806505]
[1744349787652,6.46412,1547.0,1546.9,0.52806505]
[1744349787826,15.7852,1547.1,1546.9,0.52806505]
[1744349788027,9.32131,1547.1,1546.7,12.9305]
[1744349788223,7.29529,1547.1,1547.0,0.52822741]
[1744349788434,7.29529,1547.1,1546.7,6.46517]
[1744349788630,7.29529,1547.1,1547.0,0.5277633]
[1744349788830,13.75941,1547.1,1546.7,6.46517]
[1744349789359,13.75941,1547.1,1546.8,0.52837069]
[1744349789553,15.785551,1547.1,1546.8,0.52837069]
[1744349790253,12.92859,1547.0,1546.8,0.52837069]
[1744349790422,6.46414,1547.0,1546.8,0.52837069]
[1744349790623,6.46414,1547.0,1546.6,13.68765]
[1744349790942,6.46414,1547.0,1546.6,14.17885817]
[1744349791144,12.96531,1547.2,1546.7,1.13078753]
[1744349791368,12.96531,1547.2,1546.8,13.73845]
[1744349791663,19.42881,1547.2,1546.8,7.27365]
[1744349791953,19.42881,1547.2,1546.9,0.52765972]
[1744349792552,12.96532,1547.2,1546.9,0.52765972]
[1744349792853,19.42887,1547.2,1546.9,0.52765972]
[1744349793364,6.46389,1547.1,1546.9,0.52765972]
[1744349793558,12.92792,1547.1,1546.9,0.52765972]
[1744349793762,6.46389,1547.1,1546.9,0.52765972]
[1744349793924,12.92787,1547.1,1546.9,0.52765972]
[1744349794260,6.46389,1547.1,1546.9,0.52765972]
[1744349794476,12.92782,1547.1,1546.9,0.52765972]
[1744349794636,7.26192,1547.0,1546.9,0.52765972]
[1744349794946,7.26192,1547.0,1546.6,13.74027]
[1744349795147,13.72637,1547.0,1546.7,0.52716034]
[1744349795352,12.92952,1546.9,1546.6,0.8089]
[1744349795530,12.92952,1546.9,1546.7,0.52750981]
[1744349795729,6.46475,1546.9,1546.6,0.8089]
[1744349796039,6.46475,1546.9,1546.7,0.52756806]
[1744349796547,6.46475,1546.9,1546.8,0.52726438]
[1744349796740,6.46475,1546.9,1546.6,0.8089]
[1744349796937,6.46497,1546.8,1546.7,0.52768456]
[1744349797131,7.2988,1546.8,1546.3,6.21785235]
[1744349797330,6.46663,1546.4,1546.3,6.21785235]
[1744349797752,6.46639,1546.5,1546.3,6.21785235]
[1744349797932,7.26361,1546.6,1546.2,12.68508235]
[1744349798251,7.26361,1546.6,1546.3,6.46701]
[1744349799653,6.46539,1546.7,1546.4,0.8089]
[1744349799818,6.4658,1546.6,1546.2,8.37615059]
[1744349800023,7.26431,1546.5,1546.2,7.02675235]
[1744349800224,7.26431,1546.5,1546.2,6.21785235]
[1744349800633,7.26431,1546.5,1546.1,6.46759]
[1744349801660,6.46586,1546.6,1546.2,7.27734]
[1744349801864,6.46649,1546.5,1546.2,0.8099]
[1744349802970,6.46647,1546.5,1546.2,0.8099]
[1744349803262,6.46647,1546.5,1545.9,2.88031988]
[1744349803263,6.46759,1546.2,1545.9,7.27858]
[1744349804273,12.93492,1546.3,1545.9,13.7471]
[1744349804984,13.72828,1546.4,1545.9,0.8099]
[1744349805285,13.72828,1546.4,1546.1,6.46774]
[1744349806151,20.19514,1546.4,1546.0,6.46814]
[1744349806351,13.72828,1546.4,1546.0,7.842771]
[1744349807371,6.497,1546.4,1546.2,6.46716]
[1744349807700,0.7646,1546.6,1546.3,6.46705]
[1744349807852,12.96372,1546.7,1546.4,0.8099]
[1744349808048,15.599052,1546.7,1546.4,0.8099]
[1744349808446,22.064722,1546.7,1546.4,0.8099]
[1744349808683,15.599002,1546.7,1546.4,0.8099]
[1744349809188,15.599002,1546.7,1546.4,7.27634]
[1744349809795,12.96367,1546.7,1546.4,7.27634]
[1744349811197,12.96367,1546.7,1546.5,0.48562591]
[1744349812503,6.498,1546.7,1546.5,0.48562591]
[1744349813092,12.96343,1546.7,1546.5,0.48562591]
[1744349816284,19.42906,1546.7,1546.5,0.48562591]
[1744349817177,12.96343,1546.7,1546.5,0.48562591]
[1744349817379,22.064343,1546.7,1546.5,0.48562591]
[1744349817572,6.46579,1546.6,1546.5,0.48562591]
[1744349817900,6.46579,1546.6,1546.3,6.46704]
[1744349818091,6.46579,1546.6,1546.5,0.48520791]
[1744349818288,12.93187,1546.6,1546.4,0.48551175]
[1744349818600,12.93187,1546.6,1546.5,0.48520791]
[1744349818898,15.9077873,1546.6,1546.5,0.48520791]
[1744349819099,6.46681,1546.4,1546.1,7.28477]
[1744349820099,12.93265,1546.5,1546.1,13.75236]